fUSD/lending_fUSD_20240210
["ID","MTS","AMOUNT","RATE_DAILY","PERIOD"]
[313694559,1707587500043,-787.47,0.00041917,30]
[313694560,1707587500081,-500.0,0.00041917,30]
[313694561,1707587500117,-500.0,0.00041917,30]
[313694562,1707587500154,-575.33,0.00041917,30]
[313694563,1707587500191,-658.85,0.00041917,30]
[313694564,1707587500228,-693.78,0.00041917,30]
[313694565,1707587500270,-500.0,0.00041917,30]
[313694566,1707587500306,-588.78,0.00041917,30]
[313694567,1707587500344,-1316.84,0.0004198,120]
[313694568,1707587500381,-12188.21248,0.00041988,30]
[313694569,1707587500418,-292.588036,0.00041988,30]
[313694570,1707587500458,-190.466183,0.00041988,30]
[313694571,1707587500498,-190.630253,0.00041988,30]
[313694572,1707587500533,-173.810294,0.00041988,30]
[313694573,1707587500569,-172.919355,0.00041988,30]
[313694574,1707587500604,-200.0,0.00042,30]
[313694575,1707587500639,-2044.0,0.00042,120]
[313694576,1707587500674,-30874.9805748,0.00042,30]
[313694577,1707587500709,-300.0,0.00042,43]
[313694578,1707587500742,-20000.0,0.00042,30]
[313694579,1707587500776,-11099.35328536,0.00042,30]
[313694580,1707587500809,-10000.0,0.00042,30]
[313694581,1707587500842,-72590.29242233,0.00042,30]
[313694582,1707587500875,-1000000.0,0.00042,30]
[313694583,1707587500909,-25000.0,0.00042,30]
[313694584,1707587500942,-3797.33605282,0.00042,30]
[313694585,1707587500977,-1000.0,0.00042,120]
[313694586,1707587501012,-20836.14400134,0.00042,30]
[313694587,1707587501055,-5842.0,0.00042,30]
[313694588,1707587501090,-5000.0,0.00042,30]
[313694589,1707587501124,-3941.0,0.00042,30]
[313694590,1707587501159,-540.0,0.00042,30]
[313694591,1707587501193,-200.0,0.00042,49]
[313694592,1707587501229,-10206.0,0.000421,30]
[313694593,1707587501265,-7323.0,0.0004215,30]
[313694594,1707587501300,-7323.0,0.0004215,60]
[313694595,1707587501334,-5247.0,0.0004215,30]
[313694596,1707587501370,-5247.0,0.0004215,60]
[313694597,1707587501406,-207.0,0.00042186,31]
[313694598,1707587501442,-500.0,0.00042191,30]
[313694599,1707587501479,-500.0,0.00042191,30]
[313694600,1707587501512,-533.56,0.00042191,30]
[313694601,1707587501544,-500.0,0.00042191,30]
[313694602,1707587501575,-212.33,0.00042191,30]
[313694603,1707587501606,-543.5,0.00042191,30]
[313694604,1707587501639,-500.0,0.00042191,30]
[313694605,1707587501674,-500.0,0.00042191,30]
[313694606,1707587501709,-500.0,0.00042191,30]
[313694607,1707587501744,-643.45,0.00042191,30]
[313694608,1707587501778,-594.35,0.00042191,30]
[313694609,1707587501812,-500.0,0.00042191,30]
[313694610,1707587501846,-500.0,0.00042191,30]
[313694611,1707587501879,-500.0,0.00042191,30]
[313694612,1707587501912,-500.0,0.00042191,30]
[313694613,1707587501945,-500.0,0.00042191,30]
[313694614,1707587501983,-500.0,0.00042191,30]
[313694615,1707587502018,-636.08,0.00042191,30]
[313694616,1707587502052,-500.0,0.00042191,30]
[313694617,1707587502087,-506.82,0.00042191,30]
[313694618,1707587502120,-500.0,0.00042191,30]
[313694619,1707587502155,-500.0,0.00042191,30]
[313694620,1707587502194,-381.33593945,0.00042191,30]
[313694621,1707587502230,-500.0,0.00042191,30]
[313694622,1707587502267,-500.0,0.00042191,30]
[313694623,1707587502303,-500.0,0.00042191,30]
[313694624,1707587502339,-500.0,0.00042191,30]
[313694625,1707587502375,-617.86,0.00042191,30]
[313694626,1707587502409,-500.0,0.00042191,30]
[313694627,1707587502445,-849.56,0.00042191,30]
[313694628,1707587502480,-515.6,0.00042191,30]
[313694629,1707587502515,-500.0,0.00042191,30]
[313694630,1707587502556,-525.58,0.00042191,30]
[313694631,1707587502590,-977.73,0.00042191,30]
[313694632,1707587502624,-500.0,0.00042191,30]
[313694633,1707587502661,-500.0,0.00042191,30]
[313694634,1707587502698,-1242.56,0.00042191,30]
[313694635,1707587502732,-645.83,0.00042191,30]
[313694636,1707587502769,-500.0,0.00042191,30]
[313694637,1707587502807,-500.0,0.00042191,30]
[313694638,1707587502842,-873.15,0.00042191,30]
[313694639,1707587502876,-250.76438527,0.00042191,30]
[313694640,1707587502911,-779.81,0.00042191,30]
[313694641,1707587502943,-500.0,0.00042191,30]
[313694642,1707587502976,-519.82,0.00042191,30]
[313694643,1707587503192,-705.9,0.00042191,30]
[313694644,1707587503298,-1052.93,0.00042191,30]
[313694645,1707587503336,-353.19823532,0.00042191,30]
[313694646,1707587503373,-667.08,0.00042191,30]
[313694647,1707587503409,-754.28,0.00042191,30]
[313694648,1707587503444,-500.0,0.00042191,30]
[313694649,1707587503480,-1382.71,0.00042191,30]
[313694650,1707587503515,-1223.13,0.00042191,30]
[313694651,1707587503548,-611.01,0.00042191,30]
[313694652,1707587503584,-1057.09,0.00042191,30]
[313694653,1707587503617,-384.44453618,0.00042191,30]
[313694654,1707587503652,-738.23,0.00042191,30]
[313694655,1707587503691,-453.77477824,0.00042191,30]
[313694656,1707587503727,-1631.07,0.00042191,30]
[313694657,1707587503761,-765.85,0.00042191,30]
[313694658,1707587503796,-1109.61,0.00042191,30]
[313694659,1707587503832,-1493.22,0.00042191,30]
[313694660,1707587503866,-514.5,0.00042191,30]
[313694661,1707587503901,-500.0,0.00042191,30]
[313694662,1707587503936,-1076.65,0.00042191,30]
[313694663,1707587503971,-1633.0,0.00042191,30]
[313694664,1707587504006,-1151.29,0.00042191,30]
[313694665,1707587504040,-500.0,0.00042191,30]
[313694666,1707587504074,-1429.03,0.00042191,30]
[313694667,1707587504108,-623.04,0.00042191,30]
[313694668,1707587504142,-500.0,0.00042191,30]
[313694669,1707587504179,-1288.88,0.00042191,30]
[313694670,1707587504218,-500.0,0.00042191,30]
[313694671,1707587504256,-1221.03,0.00042191,30]
[313694672,1707587504296,-500.0,0.00042191,30]
[313694673,1707587504336,-500.0,0.00042191,30]
[313694674,1707587504378,-677.17,0.00042191,30]
[313694675,1707587504423,-984.72,0.00042191,30]
[313694676,1707587504466,-500.0,0.00042191,30]
[313694677,1707587504508,-1897.56,0.00042191,30]
[313694678,1707587504545,-555.2,0.00042191,30]
[313694679,1707587504582,-542.42,0.00042191,30]
[313694680,1707587504616,-500.0,0.00042191,30]
[313694681,1707587504650,-500.0,0.00042191,30]
[313694682,1707587504688,-1609.58,0.00042191,30]
[313694683,1707587504724,-1423.85,0.00042191,30]
[313694684,1707587504760,-500.0,0.00042191,30]
[313694685,1707587504793,-500.0,0.00042191,30]
[313694686,1707587504828,-1220.89,0.00042191,30]
[313694687,1707587504863,-500.0,0.00042191,30]
[313694688,1707587504897,-627.76,0.00042191,30]
[313694689,1707587504933,-1575.17,0.00042191,30]
[313694690,1707587504968,-2197.66,0.00042191,30]
[313694691,1707587505004,-849.0,0.00042191,30]
[313694692,1707587505039,-529.49,0.00042191,30]
[313694693,1707587505071,-500.0,0.00042191,30]
[313694694,1707587505105,-2142.16,0.00042191,30]
[313694695,1707587505140,-1257.96,0.00042191,30]
[313694696,1707587505176,-847.82,0.00042191,30]
[313694697,1707587505213,-500.0,0.00042191,30]
[313694698,1707587505253,-1504.28,0.00042191,30]
[313694699,1707587505290,-773.57,0.00042191,30]
[313694700,1707587505329,-1348.64,0.00042191,30]
[313694701,1707587505365,-1079.05,0.00042191,30]
[313694702,1707587505402,-872.64,0.00042191,30]
[313694703,1707587505437,-500.0,0.00042191,30]
[313694704,1707587505472,-1396.29,0.00042191,30]
[313694705,1707587505508,-500.0,0.00042191,30]
[313694706,1707587505544,-1241.2,0.00042191,30]
[313694707,1707587505582,-500.0,0.00042191,30]
[313694708,1707587505619,-695.42,0.00042191,30]
[313694709,1707587505654,-500.0,0.00042191,30]
[313694710,1707587505694,-500.0,0.00042191,30]
[313694711,1707587505732,-855.61,0.00042191,30]
[313694712,1707587505769,-527.2,0.00042191,30]
[313694713,1707587505804,-500.0,0.00042191,30]
[313694714,1707587505839,-500.0,0.00042191,30]
[313694715,1707587505914,-500.0,0.00042191,30]
[313694716,1707587505951,-537.38,0.00042191,30]
[313694717,1707587505986,-500.0,0.00042191,30]
[313694718,1707587506026,-2058.09,0.00042191,30]
[313694719,1707587506064,-507.56,0.00042191,30]
[313694720,1707587506099,-500.0,0.00042191,30]
[313694721,1707587506135,-500.0,0.00042191,30]
[313694722,1707587506169,-1566.47,0.00042191,30]
[313694723,1707587506210,-500.0,0.00042191,30]
[313694724,1707587506247,-500.0,0.00042191,30]
[313694725,1707587506282,-695.9,0.00042191,30]
[313694726,1707587506319,-639.84,0.00042191,30]
[313694727,1707587506361,-1000.0,0.00042191,120]
[313694728,1707587506404,-500.0,0.00042191,30]
[313694729,1707587506453,-523.41,0.00042191,30]
[313694730,1707587506500,-1209.67,0.00042191,30]
[313694731,1707587506543,-727.64,0.00042191,30]
[313694732,1707587506581,-1695.73,0.00042191,30]
[313694733,1707587506618,-500.0,0.00042191,30]
[313694734,1707587506656,-500.0,0.00042191,30]
[313694735,1707587506693,-636.9,0.00042191,30]
[313694736,1707587506727,-552.79,0.00042191,30]
[313694737,1707587506763,-822.03,0.00042191,30]
[313694738,1707587506802,-969.79,0.00042191,30]
[313694739,1707587506835,-500.0,0.00042191,30]
[313694740,1707587506874,-500.0,0.00042191,30]
[313694741,1707587506911,-519.84,0.00042191,30]
[313694742,1707587506949,-574.94,0.00042191,30]
[313694743,1707587506985,-520.2,0.00042191,30]
[313694744,1707587507020,-726.91,0.00042191,30]
[313694745,1707587507057,-500.0,0.00042191,30]
[313694746,1707587507094,-500.0,0.00042191,30]
[313694747,1707587507131,-500.0,0.00042191,30]
[313694748,1707587507168,-377.82,0.00042191,30]
[313694749,1707587507205,-500.0,0.00042191,30]
[313694750,1707587507246,-1279.88,0.00042191,30]
[313694751,1707587507289,-898.34,0.00042191,30]
[313694752,1707587507326,-1568.74,0.00042191,30]
[313694753,1707587507363,-605.13,0.00042191,30]
[313694754,1707587507402,-739.5,0.00042191,30]
[313694755,1707587507440,-1667.99,0.00042191,30]
[313694756,1707587507478,-1541.7,0.00042191,30]
[313694757,1707587507513,-1558.57,0.00042191,30]
[313694758,1707587507549,-500.0,0.00042191,30]
[313694759,1707587507583,-430.7,0.00042191,30]
[313694760,1707587507618,-594.19,0.00042191,30]
[313694761,1707587507655,-500.0,0.00042191,30]
[313694762,1707587507695,-798.83,0.00042191,30]
[313694763,1707587507730,-1555.02,0.00042191,30]
[313694764,1707587507767,-1157.65,0.00042191,30]
[313694765,1707587507807,-626.18,0.00042191,30]
[313694766,1707587507841,-571.81,0.00042191,30]
[313694767,1707587507874,-565.78,0.00042191,30]
[313694768,1707587507908,-500.0,0.00042191,30]
[313694769,1707587507942,-500.0,0.00042191,30]
[313694770,1707587507978,-757.98,0.00042191,30]
[313694771,1707587508015,-1688.53,0.00042191,30]
[313694772,1707587508051,-1874.32,0.00042191,30]
[313694773,1707587508087,-500.0,0.00042191,30]
[313694774,1707587508124,-500.0,0.00042191,30]
[313694775,1707587508161,-2851.71,0.00042191,30]
[313694776,1707587508197,-500.0,0.00042191,30]
[313694777,1707587508232,-756.2,0.00042191,30]
[313694778,1707587508267,-1086.17,0.00042191,30]
[313694779,1707587508302,-5736.87,0.00042191,30]
[313694780,1707587508338,-500.0,0.00042191,30]
[313694781,1707587508375,-500.0,0.00042191,30]
[313694782,1707587508412,-500.0,0.00042191,30]
[313694783,1707587508447,-673.05,0.00042191,30]
[313694784,1707587508483,-942.13,0.00042191,30]
[313694785,1707587508517,-806.65,0.00042191,30]
[313694786,1707587508551,-2426.36,0.00042191,30]
[313694787,1707587508585,-500.0,0.00042191,30]
[313694788,1707587508620,-1128.55,0.00042191,30]
[313694789,1707587508658,-787.47,0.00042191,30]
[313694790,1707587508695,-185.17,0.00042191,30]
[313694791,1707587508730,-500.0,0.00042191,30]
[313694792,1707587508765,-575.33,0.00042191,30]
[313694793,1707587508799,-658.85,0.00042191,30]
[313694794,1707587508833,-693.78,0.00042191,30]
[313694795,1707587508867,-500.0,0.00042191,30]
[313694796,1707587508901,-500.0,0.0004237,30]
[313694797,1707587508938,-200.0,0.000424,30]
[313694798,1707587508972,-500.0,0.00042465,30]
[313694799,1707587509005,-500.0,0.00042465,30]
[313694800,1707587509043,-533.56,0.00042465,30]
[313694801,1707587509080,-500.0,0.00042465,30]
[313694802,1707587509120,-543.5,0.00042465,30]
[313694803,1707587509155,-500.0,0.00042465,30]
[313694804,1707587509191,-500.0,0.00042465,30]
[313694805,1707587509230,-500.0,0.00042465,30]
[313694806,1707587509267,-643.45,0.00042465,30]
[313694807,1707587509307,-594.35,0.00042465,30]
[313694808,1707587509345,-500.0,0.00042465,30]
[313694809,1707587509384,-500.0,0.00042465,30]
[313694810,1707587509424,-500.0,0.00042465,30]
[313694811,1707587509461,-500.0,0.00042465,30]
[313694812,1707587509498,-500.0,0.00042465,30]
[313694813,1707587509534,-500.0,0.00042465,30]
[313694814,1707587509567,-500.0,0.00042465,30]
[313694815,1707587509600,-500.0,0.00042465,30]
[313694816,1707587509633,-500.0,0.00042465,30]
[313694817,1707587509674,-500.0,0.00042465,30]
[313694818,1707587509710,-500.0,0.00042465,30]
[313694819,1707587509746,-500.0,0.00042465,30]
[313694820,1707587509903,-601.32486655,0.00042465,30]
[313694821,1707587509939,-500.0,0.00042465,30]
[313694822,1707587509975,-360.55342864,0.00042465,30]
[313694823,1707587510009,-636.08,0.00042465,30]
[313694824,1707587510048,-500.0,0.00042465,30]
[313694825,1707587510084,-506.82,0.00042465,30]
[313694826,1707587510120,-398.20332185,0.00042465,30]
[313694827,1707587510155,-500.0,0.00042465,30]
[313694828,1707587510191,-500.0,0.00042465,30]
[313694829,1707587510229,-500.0,0.00042465,30]
[313694830,1707587510266,-500.0,0.00042465,30]
[313694831,1707587510304,-500.0,0.00042465,30]
[313694832,1707587510343,-617.86,0.00042465,30]
[313694833,1707587510380,-318.41230911,0.00042465,30]
[313694834,1707587510415,-849.56,0.00042465,30]
[313694835,1707587510452,-515.6,0.00042465,30]
[313694836,1707587510491,-500.0,0.00042465,30]
[313694837,1707587510527,-525.58,0.00042465,30]
[313694838,1707587510565,-977.73,0.00042465,30]
[313694839,1707587510601,-548.69211665,0.00042465,30]
[313694840,1707587510637,-500.0,0.00042465,30]
[313694841,1707587510674,-1242.56,0.00042465,30]
[313694842,1707587510711,-645.83,0.00042465,30]
[313694843,1707587510748,-500.0,0.00042465,30]
[313694844,1707587510785,-500.0,0.00042465,30]
[313694845,1707587510821,-873.15,0.00042465,30]
[313694846,1707587510858,-779.81,0.00042465,30]
[313694847,1707587510901,-401.54553013,0.00042465,30]
[313694848,1707587510937,-519.82,0.00042465,30]
[313694849,1707587510974,-705.9,0.00042465,30]
[313694850,1707587511013,-1052.93,0.00042465,30]
[313694851,1707587511051,-667.08,0.00042465,30]
[313694852,1707587511086,-754.28,0.00042465,30]
[313694853,1707587511120,-500.0,0.00042465,30]
[313694854,1707587511157,-1382.71,0.00042465,30]
[313694855,1707587511192,-1223.13,0.00042465,30]
[313694856,1707587511228,-611.01,0.00042465,30]
[313694857,1707587511265,-1057.09,0.00042465,30]
[313694858,1707587511301,-738.23,0.00042465,30]
[313694859,1707587511338,-1631.07,0.00042465,30]
[313694860,1707587511377,-765.85,0.00042465,30]
[313694861,1707587511415,-1109.61,0.00042465,30]
[313694862,1707587511454,-1493.22,0.00042465,30]
[313694863,1707587511494,-514.5,0.00042465,30]
[313694864,1707587511531,-500.0,0.00042465,30]
[313694865,1707587511569,-1076.65,0.00042465,30]
[313694866,1707587511607,-1633.0,0.00042465,30]
[313694867,1707587511646,-1151.29,0.00042465,30]
[313694868,1707587511685,-500.0,0.00042465,30]
[313694869,1707587511722,-1429.03,0.00042465,30]
[313694870,1707587511757,-623.04,0.00042465,30]
[313694871,1707587511796,-500.0,0.00042465,30]
[313694872,1707587511836,-1288.88,0.00042465,30]
[313694873,1707587511876,-500.0,0.00042465,30]
[313694874,1707587511915,-1221.03,0.00042465,30]
[313694875,1707587511954,-500.0,0.00042465,30]
[313694876,1707587511993,-500.0,0.00042465,30]
[313694877,1707587512033,-677.17,0.00042465,30]
[313694878,1707587512071,-984.72,0.00042465,30]
[313694879,1707587512109,-500.0,0.00042465,30]
[313694880,1707587512147,-1897.56,0.00042465,30]
[313694881,1707587512185,-555.2,0.00042465,30]
[313694882,1707587512224,-542.42,0.00042465,30]
[313694883,1707587512262,-500.0,0.00042465,30]
[313694884,1707587512299,-500.0,0.00042465,30]
[313694885,1707587512336,-1609.58,0.00042465,30]
[313694886,1707587512373,-1423.85,0.00042465,30]
[313694887,1707587512410,-500.0,0.00042465,30]
[313694888,1707587512449,-500.0,0.00042465,30]
[313694889,1707587512489,-1220.89,0.00042465,30]
[313694890,1707587512527,-500.0,0.00042465,30]
[313694891,1707587512566,-627.76,0.00042465,30]
[313694892,1707587512602,-1575.17,0.00042465,30]
[313694893,1707587512640,-2197.66,0.00042465,30]
[313694894,1707587512678,-849.0,0.00042465,30]
[313694895,1707587512714,-529.49,0.00042465,30]
[313694896,1707587512750,-500.0,0.00042465,30]
[313694897,1707587512786,-2142.16,0.00042465,30]
[313694898,1707587512822,-847.82,0.00042465,30]
[313694899,1707587512858,-1257.96,0.00042465,30]
[313694900,1707587512896,-500.0,0.00042465,30]
[313694901,1707587512932,-1504.28,0.00042465,30]
[313694902,1707587512967,-773.57,0.00042465,30]
[313694903,1707587513003,-1348.64,0.00042465,30]
[313694904,1707587513040,-1079.05,0.00042465,30]
[313694905,1707587513077,-872.64,0.00042465,30]
[313694906,1707587513113,-500.0,0.00042465,30]
[313694907,1707587513149,-1396.29,0.00042465,30]
[313694908,1707587513186,-500.0,0.00042465,30]
[313694909,1707587513223,-1241.2,0.00042465,30]
[313694910,1707587513511,-500.0,0.00042465,30]
[313694911,1707587513551,-695.42,0.00042465,30]
[313694912,1707587513595,-500.0,0.00042465,30]
[313694913,1707587513633,-500.0,0.00042465,30]
[313694914,1707587513673,-855.61,0.00042465,30]
[313694915,1707587513709,-527.2,0.00042465,30]
[313694916,1707587513747,-500.0,0.00042465,30]
[313694917,1707587513783,-589.92971543,0.00042465,30]
[313694918,1707587513819,-500.0,0.00042465,30]
[313694919,1707587513856,-537.38,0.00042465,30]
[313694920,1707587513891,-500.0,0.00042465,30]
[313694921,1707587513928,-2058.09,0.00042465,30]
[313694922,1707587513964,-507.56,0.00042465,30]
[313694923,1707587513999,-532.44016814,0.00042465,30]
[313694924,1707587514035,-500.0,0.00042465,30]
[313694925,1707587514075,-1566.47,0.00042465,30]
[313694926,1707587514110,-500.0,0.00042465,30]
[313694927,1707587514144,-500.0,0.00042465,30]
[313694928,1707587514178,-695.9,0.00042465,30]
[313694929,1707587514213,-639.84,0.00042465,30]
[313694930,1707587514250,-1000.0,0.00042465,120]
[313694931,1707587514287,-500.0,0.00042465,30]
[313694932,1707587514324,-523.41,0.00042465,30]
[313694933,1707587514359,-1209.67,0.00042465,30]
[313694934,1707587514396,-727.64,0.00042465,30]
[313694935,1707587514433,-1695.73,0.00042465,30]
[313694936,1707587514470,-500.0,0.00042465,30]
[313694937,1707587514507,-500.0,0.00042465,30]
[313694938,1707587514542,-636.9,0.00042465,30]
[313694939,1707587514578,-552.79,0.00042465,30]
[313694940,1707587514613,-822.03,0.00042465,30]
[313694941,1707587514650,-969.79,0.00042465,30]
[313694942,1707587514686,-500.0,0.00042465,30]
[313694943,1707587514720,-519.84,0.00042465,30]
[313694944,1707587514764,-574.94,0.00042465,30]
[313694945,1707587514800,-500.0,0.00042465,30]
[313694946,1707587514836,-520.2,0.00042465,30]
[313694947,1707587514890,-726.91,0.00042465,30]
[313694948,1707587514932,-500.0,0.00042465,30]
[313694949,1707587514973,-500.0,0.00042465,30]
[313694950,1707587515012,-500.0,0.00042465,30]
[313694951,1707587515051,-500.0,0.00042465,30]
[313694952,1707587515089,-898.34,0.00042465,30]
[313694953,1707587515124,-1279.88,0.00042465,30]
[313694954,1707587515162,-1568.74,0.00042465,30]
[313694955,1707587515199,-605.13,0.00042465,30]
[313694956,1707587515239,-739.5,0.00042465,30]
[313694957,1707587515277,-1667.99,0.00042465,30]
[313694958,1707587515313,-1541.7,0.00042465,30]
[313694959,1707587515350,-1558.57,0.00042465,30]
[313694960,1707587515389,-500.0,0.00042465,30]
[313694961,1707587515428,-594.19,0.00042465,30]
[313694962,1707587515466,-500.0,0.00042465,30]
[313694963,1707587515504,-798.83,0.00042465,30]
[313694964,1707587515541,-1555.02,0.00042465,30]
[313694965,1707587515578,-1157.65,0.00042465,30]
[313694966,1707587515613,-626.18,0.00042465,30]
[313694967,1707587515649,-571.81,0.00042465,30]
[313694968,1707587515692,-565.78,0.00042465,30]
[313694969,1707587515729,-500.0,0.00042465,30]
[313694970,1707587515769,-500.0,0.00042465,30]
[313694971,1707587515806,-757.98,0.00042465,30]
[313694972,1707587515841,-1688.53,0.00042465,30]
[313694973,1707587515878,-1874.32,0.00042465,30]
[313694974,1707587515913,-500.0,0.00042465,30]
[313694975,1707587515949,-500.0,0.00042465,30]
[313694976,1707587515984,-2851.71,0.00042465,30]
[313694977,1707587516020,-500.0,0.00042465,30]
[313694978,1707587516054,-756.2,0.00042465,30]
[313694979,1707587516089,-1086.17,0.00042465,30]
[313694980,1707587516124,-5736.87,0.00042465,30]
[313694981,1707587516159,-500.0,0.00042465,30]
[313694982,1707587516237,-500.0,0.00042465,30]
[313694983,1707587516277,-500.0,0.00042465,30]
[313694984,1707587516316,-673.05,0.00042465,30]
[313694985,1707587516355,-942.13,0.00042465,30]
[313694986,1707587516392,-806.65,0.00042465,30]
[313694987,1707587516430,-2426.36,0.00042465,30]
[313694988,1707587516467,-230.01,0.00042465,30]
[313694989,1707587516503,-1128.55,0.00042465,30]
[313694990,1707587516540,-787.47,0.00042465,30]
[313694991,1707587516575,-500.0,0.00042465,30]
[313694992,1707587516608,-575.33,0.00042465,30]
[313694993,1707587516641,-658.85,0.00042465,30]
[313694994,1707587516675,-693.78,0.00042465,30]
[313694995,1707587516710,-5000.0,0.000425,45]
[313694996,1707587516745,-837689.38306129,0.000425,30]
[313694997,1707587517899,-792.51428452,0.00022051,2]
[313694998,1707587517909,-22308.97729849,0.00022075,2]
[313694999,1707587517919,-4675.86414291,0.00022076,2]
[313695000,1707587517928,-7292.27644686,0.00022078,2]
[313695001,1707587517938,-4272.1337057,0.0002208,2]
[313695002,1707587517948,-151.58,0.00022133,2]
[313695003,1707587517959,-499.99,0.00022185,2]
[313695004,1707587517968,-572.40364015,0.000222,2]
[313695005,1707587517977,-501.43734414,0.000222,2]
[313695006,1707587517988,-211.46510632,0.000222,2]
[313695007,1707587517998,-385.82401621,0.000222,2]
[313695008,1707587518007,-1479.12653739,0.000222,2]
[313695009,1707587518016,-221.77404607,0.000222,2]
[313695010,1707587518026,-150.99,0.000222,2]
[313695011,1707587518035,-5434.95385805,0.00022201,2]
[313695012,1707587518044,-788.3139,0.00022202,2]
[313695013,1707587518053,-1131.14,0.00022202,2]
[313695014,1707587518063,-352.7045,0.00022202,2]
[313695015,1707587518072,-603.60667108,0.00022202,2]
[313695016,1707587518082,-57432.9532,0.00022202,2]
[313695017,1707587518092,-252.3952,0.00022202,2]
[313695018,1707587518102,-3671.2395,0.00022202,2]
[313695019,1707587518111,-191.0933595,0.00022203,2]
[313695020,1707587518120,-155.49416288,0.00022203,2]
[313695021,1707587518130,-202.88373674,0.00022203,2]
[313695022,1707587518140,-320.1711059,0.00022203,2]
[313695023,1707587518149,-450.1876453,0.00022203,2]
[313695024,1707587518159,-3146.3713841,0.00022203,2]
[313695025,1707587518168,-158.30621508,0.00022203,2]
[313695026,1707587518178,-289.52552277,0.00022203,2]
[313695027,1707587518188,-155.80915845,0.00022203,2]
[313695028,1707587518198,-1558.49753965,0.00022203,2]
[313695029,1707587518207,-552.49843378,0.00022203,2]
[313695030,1707587518217,-278.98235242,0.00022203,2]
[313695031,1707587518227,-1619.64441536,0.00022203,2]
[313695032,1707587518236,-2582.97342098,0.00022203,2]
[313695033,1707587518246,-405.33563829,0.00022204,2]
[313695034,1707587518256,-4376.97825169,0.00022204,2]
[313695035,1707587518266,-6454.34937237,0.00022204,2]
[313695036,1707587518275,-151.58,0.00022235,2]
[313695037,1707587518286,-212.45990645,0.00022298,2]
[313695038,1707587518295,-286.64483991,0.000223,2]
[313695039,1707587518306,-10379.79023483,0.000223,2]
[313695040,1707587518315,-1197.93357264,0.00022301,2]
[313695041,1707587518325,-651.54599007,0.00022302,2]
[313695042,1707587518335,-481.69275539,0.00022302,2]
[313695043,1707587518345,-156.5183309,0.00022302,2]
[313695044,1707587518355,-1674.38125992,0.00022302,2]
[313695045,1707587518365,-178.58971379,0.00022302,2]
[313695046,1707587518374,-166.71423926,0.00022302,2]
[313695047,1707587518384,-215925.56096534,0.00022302,2]
[313695048,1707587518394,-244.74550006,0.00022303,2]
[313695049,1707587518405,-278.86272743,0.00022303,2]
[313695050,1707587518414,-931.27833918,0.00022303,2]
[313695051,1707587518424,-304.09776039,0.00022303,2]
[313695052,1707587518433,-382.34382685,0.00022303,2]
[313695053,1707587518442,-542.41003857,0.00022303,2]
[313695054,1707587518451,-10586.42210638,0.00022303,2]
[313695055,1707587518461,-2774.2158366,0.00022303,2]
[313695056,1707587518471,-329.35415811,0.00022303,2]
[313695057,1707587518481,-156.69123612,0.00022303,2]
[313695058,1707587518491,-500.50400422,0.00022303,2]